[Event "Early-Titled-Tuesday-Blitz-May-14-2024"]
[Site "Chess.com"]
[Date "2024.05.14"]
[Round "4"]
[White "PawnEatingZombie"]
[Black "Casper"]
[Result "0-1"]
[WhiteElo "2271"]
[BlackElo "2499"]
[TimeControl "180+1"]
[EndTime "8:40:58 PDT"]
[Termination "Casper won on time"]

1. e4 {[%clk 0:03:00.9]} 1... Nc6 {[%clk 0:02:54.9]} 2. Nf3 {[%clk 0:02:58.2]}
2... g6 {[%clk 0:02:53.7]} 3. c3 {[%clk 0:02:48.4]} 3... d5 {[%clk 0:02:53]} 4.
exd5 {[%clk 0:02:46.8]} 4... Qxd5 {[%clk 0:02:53.9]} 5. d4 {[%clk 0:02:43.4]}
5... Bg4 {[%clk 0:02:54.2]} 6. Be2 {[%clk 0:02:43.7]} 6... e5 {[%clk 0:02:53.9]}
7. dxe5 {[%clk 0:02:34.5]} 7... O-O-O {[%clk 0:02:50.1]} 8. Qxd5 {[%clk
0:02:33.5]} 8... Rxd5 {[%clk 0:02:51]} 9. Bf4 {[%clk 0:02:25.5]} 9... Bg7 {[%clk
0:02:44.8]} 10. Nbd2 {[%clk 0:02:25.3]} 10... Nge7 {[%clk 0:02:40.2]} 11. O-O-O
{[%clk 0:02:13.1]} 11... Nxe5 {[%clk 0:02:29.5]} 12. Bxe5 {[%clk 0:02:03.7]}
12... Bxe5 {[%clk 0:02:28.8]} 13. h3 {[%clk 0:02:04.2]} 13... Bf5 {[%clk
0:02:15.1]} 14. Nxe5 {[%clk 0:02:00.1]} 14... Rxe5 {[%clk 0:02:15.3]} 15. Rhe1
{[%clk 0:01:48.6]} 15... Nc6 {[%clk 0:02:10.5]} 16. Bf3 {[%clk 0:01:43.4]} 16...
Rc5 {[%clk 0:02:04]} 17. Bxc6 {[%clk 0:01:38.6]} 17... Rxc6 {[%clk 0:02:04.9]}
18. Nf3 {[%clk 0:01:34.1]} 18... Ra6 {[%clk 0:02:02.8]} 19. a3 {[%clk
0:01:28.6]} 19... Rf6 {[%clk 0:02:02.8]} 20. Nd4 {[%clk 0:01:24.6]} 20... Bd7
{[%clk 0:02:02.1]} 21. f3 {[%clk 0:01:19.3]} 21... h5 {[%clk 0:02:02.5]} 22. h4
{[%clk 0:01:17.2]} 22... a5 {[%clk 0:02:01.7]} 23. Re7 {[%clk 0:01:03]} 23...
Kd8 {[%clk 0:01:54.2]} 24. Nc6+ {[%clk 0:01:01.6]} 24... Rxc6 {[%clk 0:01:44.5]}
25. Rdxd7+ {[%clk 0:01:01.3]} 25... Kc8 {[%clk 0:01:45.2]} 26. Rxf7 {[%clk
0:01:01.2]} 26... Re8 {[%clk 0:01:42.7]} 27. Rfe7 {[%clk 0:00:57.5]} 27... Rf8
{[%clk 0:01:32.4]} 28. Rf7 {[%clk 0:00:41.5]} 28... Re8 {[%clk 0:01:32.3]} 29.
Kd2 {[%clk 0:00:38.8]} 29... Re5 {[%clk 0:01:21.5]} 30. Rde7 {[%clk 0:00:31.2]}
30... Rd5+ {[%clk 0:01:10.9]} 31. Kc2 {[%clk 0:00:31.3]} 31... b6 {[%clk
0:01:11.6]} 32. a4 {[%clk 0:00:24.1]} 32... Kb7 {[%clk 0:01:06.7]} 33. Rg7
{[%clk 0:00:21.5]} 33... Rf5 {[%clk 0:01:04.2]} 34. Rgf7 {[%clk 0:00:17.8]}
34... Rfc5 {[%clk 0:01:03.9]} 35. g4 {[%clk 0:00:15.4]} 35... Rc4 {[%clk
0:01:00.9]} 36. gxh5 {[%clk 0:00:09.9]} 36... gxh5 {[%clk 0:01:01.8]} 37. f4
{[%clk 0:00:10.2]} 37... Rxa4 {[%clk 0:01:01.9]} 38. Re5 {[%clk 0:00:07.1]}
38... Ra2 {[%clk 0:00:43.5]} 39. Kb3 {[%clk 0:00:05]} 39... Ra1 {[%clk
0:00:43.6]} 40. Rxh5 {[%clk 0:00:05.1]} 40... a4+ {[%clk 0:00:43]} 41. Kc2
{[%clk 0:00:04]} 41... Rh1 {[%clk 0:00:43.3]} 42. Rhh7 {[%clk 0:00:04.1]} 42...
Rh2+ {[%clk 0:00:39]} 43. Kb1 {[%clk 0:00:04.4]} 43... b5 {[%clk 0:00:36.5]} 44.
Ka2 {[%clk 0:00:04.3]} 44... Kb6 {[%clk 0:00:36.9]} 45. h5 {[%clk 0:00:04.1]}
45... b4 {[%clk 0:00:32.1]} 46. cxb4 {[%clk 0:00:03.7]} 46... Rcc2 {[%clk
0:00:33]} 0-1

[Event "Early-Titled-Tuesday-Blitz-May-14-2024"]
[Site "Chess.com"]
[Date "2024.05.14"]
[Round "4"]
[White "DvaHrasta"]
[Black "MdChess1734"]
[Result "0-1"]
[WhiteElo "2538"]
[BlackElo "2382"]
[TimeControl "180+1"]
[EndTime "8:41:00 PDT"]
[Termination "MdChess1734 won on time"]

1. c4 {[%clk 0:03:00.9]} 1... c5 {[%clk 0:02:58.1]} 2. g3 {[%clk 0:03:00.8]}
2... Nf6 {[%clk 0:02:57.5]} 3. Bg2 {[%clk 0:03:00.8]} 3... d5 {[%clk 0:02:57.3]}
4. cxd5 {[%clk 0:03:00.4]} 4... Nxd5 {[%clk 0:02:57.8]} 5. Nc3 {[%clk
0:03:00.3]} 5... Nc7 {[%clk 0:02:56.8]} 6. Nf3 {[%clk 0:03:00.2]} 6... Nc6
{[%clk 0:02:56.7]} 7. O-O {[%clk 0:03:00.2]} 7... e5 {[%clk 0:02:56.5]} 8. d3
{[%clk 0:03:00.7]} 8... Be7 {[%clk 0:02:56.3]} 9. Nd2 {[%clk 0:03:01]} 9... Bd7
{[%clk 0:02:49.1]} 10. Nc4 {[%clk 0:03:00.1]} 10... f6 {[%clk 0:02:48.6]} 11. f4
{[%clk 0:03:00.2]} 11... b5 {[%clk 0:02:46.9]} 12. Ne3 {[%clk 0:02:59.7]} 12...
exf4 {[%clk 0:02:46.2]} 13. gxf4 {[%clk 0:02:58.8]} 13... O-O {[%clk 0:02:46.1]}
14. Ned5 {[%clk 0:02:54.5]} 14... Rb8 {[%clk 0:02:32.8]} 15. e4 {[%clk 0:02:50]}
15... Bd6 {[%clk 0:02:26.2]} 16. Nxc7 {[%clk 0:02:46.2]} 16... Qxc7 {[%clk
0:02:22.3]} 17. Be3 {[%clk 0:02:41.1]} 17... Be6 {[%clk 0:02:19.9]} 18. Nd5
{[%clk 0:02:36.4]} 18... Bxd5 {[%clk 0:02:12.8]} 19. exd5 {[%clk 0:02:36.5]}
19... Ne7 {[%clk 0:02:12.6]} 20. Be4 {[%clk 0:02:24]} 20... f5 {[%clk
0:02:06.1]} 21. Bg2 {[%clk 0:02:20.3]} 21... Rbe8 {[%clk 0:02:05.5]} 22. Rc1
{[%clk 0:02:17.2]} 22... Ng6 {[%clk 0:02:02.5]} 23. Qf3 {[%clk 0:01:48.9]} 23...
c4 {[%clk 0:01:52.9]} 24. dxc4 {[%clk 0:01:43.2]} 24... Rxe3 {[%clk 0:01:51.8]}
25. Qd1 {[%clk 0:01:04.2]} 25... Bxf4 {[%clk 0:01:39.8]} 26. cxb5 {[%clk
0:00:55]} 26... Qb6 {[%clk 0:01:29.7]} 27. Kh1 {[%clk 0:00:51.5]} 27... Qxb5
{[%clk 0:01:08.9]} 28. d6 {[%clk 0:00:50]} 28... Rd3 {[%clk 0:01:07.5]} 29. Qe2
{[%clk 0:00:42.9]} 29... Bxc1 {[%clk 0:01:06.5]} 30. Qe6+ {[%clk 0:00:35.2]}
30... Kh8 {[%clk 0:01:06.1]} 31. Rxc1 {[%clk 0:00:35.3]} 31... Qe5 {[%clk
0:00:50.2]} 32. Qc4 {[%clk 0:00:20.3]} 32... Qxd6 {[%clk 0:00:48.2]} 33. Rg1
{[%clk 0:00:15.6]} 33... Nf4 {[%clk 0:00:46.2]} 34. Bf1 {[%clk 0:00:08.4]} 34...
Rd4 {[%clk 0:00:42.5]} 35. Qb3 {[%clk 0:00:05.2]} 35... Qc6+ {[%clk 0:00:38.9]}
36. Bg2 {[%clk 0:00:05.2]} 36... Nxg2 {[%clk 0:00:39.2]} 37. Rxg2 {[%clk
0:00:05.5]} 37... Rfd8 {[%clk 0:00:34.7]} 38. h3 {[%clk 0:00:02.5]} 38... Rd2
{[%clk 0:00:33.8]} 0-1

[Event "Early-Titled-Tuesday-Blitz-May-14-2024"]
[Site "Chess.com"]
[Date "2024.05.14"]
[Round "4"]
[White "HamedWafa4"]
[Black "laiciffOneslraCsungaM"]
[Result "0-1"]
[WhiteElo "2653"]
[BlackElo "2422"]
[TimeControl "180+1"]
[EndTime "8:41:01 PDT"]
[Termination "laiciffOneslraCsungaM won on time"]

1. d4 {[%clk 0:02:45.9]} 1... Nf6 {[%clk 0:02:59]} 2. Nf3 {[%clk 0:02:34]} 2...
d6 {[%clk 0:02:59]} 3. Nc3 {[%clk 0:02:33.2]} 3... Bf5 {[%clk 0:02:42.2]} 4. Nh4
{[%clk 0:02:30.6]} 4... Bg4 {[%clk 0:02:39.2]} 5. h3 {[%clk 0:02:30.5]} 5... Bc8
{[%clk 0:02:34.7]} 6. e4 {[%clk 0:02:29.7]} 6... Nbd7 {[%clk 0:02:28.9]} 7. Nf3
{[%clk 0:02:09.3]} 7... e5 {[%clk 0:02:27.5]} 8. g4 {[%clk 0:02:08.7]} 8... exd4
{[%clk 0:02:23.6]} 9. Nxd4 {[%clk 0:02:09.6]} 9... g6 {[%clk 0:02:20.6]} 10. Bg2
{[%clk 0:01:55.1]} 10... Bg7 {[%clk 0:02:20.5]} 11. O-O {[%clk 0:01:50.8]} 11...
O-O {[%clk 0:02:20.2]} 12. Re1 {[%clk 0:01:49]} 12... c6 {[%clk 0:02:11.9]} 13.
a4 {[%clk 0:01:44.1]} 13... a5 {[%clk 0:02:11]} 14. Bf4 {[%clk 0:01:42]} 14...
Ne5 {[%clk 0:02:09.1]} 15. Bg3 {[%clk 0:01:35.8]} 15... Re8 {[%clk 0:02:07.8]}
16. f4 {[%clk 0:01:02.3]} 16... Nc4 {[%clk 0:02:05.8]} 17. Rb1 {[%clk
0:00:58.6]} 17... Qb6 {[%clk 0:02:04.3]} 18. Bf2 {[%clk 0:00:54.2]} 18... Qb4
{[%clk 0:01:55.1]} 19. Na2 {[%clk 0:00:47]} 19... Qxa4 {[%clk 0:01:55.4]} 20.
Nc1 {[%clk 0:00:44.3]} 20... c5 {[%clk 0:01:17.9]} 21. b3 {[%clk 0:00:25.8]}
21... Qd7 {[%clk 0:01:14.2]} 22. bxc4 {[%clk 0:00:22.2]} 22... cxd4 {[%clk
0:01:13.8]} 23. Bxd4 {[%clk 0:00:22.5]} 23... a4 {[%clk 0:01:09.8]} 24. Na2
{[%clk 0:00:22]} 24... Qc7 {[%clk 0:01:05.3]} 25. Qd3 {[%clk 0:00:20.5]} 25...
h5 {[%clk 0:01:04.2]} 26. g5 {[%clk 0:00:20.3]} 26... Nd7 {[%clk 0:01:03.2]} 27.
Bxg7 {[%clk 0:00:08.7]} 27... Kxg7 {[%clk 0:01:04.1]} 28. Nb4 {[%clk 0:00:07.4]}
28... a3 {[%clk 0:00:55.2]} 29. Nd5 {[%clk 0:00:05.5]} 29... Qc5+ {[%clk
0:00:54.6]} 30. Kh1 {[%clk 0:00:03.3]} 30... Ra4 {[%clk 0:00:51.9]} 31. Qc3+
{[%clk 0:00:02]} 31... Kg8 {[%clk 0:00:50.9]} 32. Bf1 {[%clk 0:00:02.9]} 32...
b6 {[%clk 0:00:43.6]} 33. Rb5 {[%clk 0:00:03.1]} 33... Qf2 {[%clk 0:00:36]} 34.
Ra1 {[%clk 0:00:04]} 34... Rxe4 {[%clk 0:00:30.9]} 35. Bg2 {[%clk 0:00:03.8]}
35... Re2 {[%clk 0:00:30.1]} 36. Rg1 {[%clk 0:00:02.3]} 36... a2 {[%clk
0:00:30.7]} 0-1

[Event "Early-Titled-Tuesday-Blitz-May-14-2024"]
[Site "Chess.com"]
[Date "2024.05.14"]
[Round "4"]
[White "Buzhizhebuguai"]
[Black "manmanlai1"]
[Result "1-0"]
[WhiteElo "2773"]
[BlackElo "2589"]
[TimeControl "180+1"]
[EndTime "8:41:02 PDT"]
[Termination "Buzhizhebuguai won on time"]

1. d4 {[%clk 0:03:00.9]} 1... Nf6 {[%clk 0:02:55.3]} 2. Nf3 {[%clk 0:02:59.9]}
2... e6 {[%clk 0:02:54.7]} 3. Bf4 {[%clk 0:02:59.8]} 3... g6 {[%clk 0:02:48.8]}
4. e3 {[%clk 0:02:59.8]} 4... Bg7 {[%clk 0:02:48.6]} 5. h3 {[%clk 0:02:57.5]}
5... O-O {[%clk 0:02:49]} 6. Be2 {[%clk 0:02:57.5]} 6... b6 {[%clk 0:02:47.9]}
7. a4 {[%clk 0:02:56]} 7... a5 {[%clk 0:02:46.4]} 8. O-O {[%clk 0:02:56.1]} 8...
Bb7 {[%clk 0:02:46.9]} 9. Na3 {[%clk 0:02:56.6]} 9... d6 {[%clk 0:02:46]} 10. c3
{[%clk 0:02:56.5]} 10... Nbd7 {[%clk 0:02:44.9]} 11. Bh2 {[%clk 0:02:56.6]}
11... Ne4 {[%clk 0:02:42.8]} 12. Nb5 {[%clk 0:02:54.4]} 12... f5 {[%clk
0:02:42.1]} 13. Re1 {[%clk 0:02:53.7]} 13... Ndf6 {[%clk 0:02:37.2]} 14. Bc4
{[%clk 0:02:51.1]} 14... Qe7 {[%clk 0:02:35.6]} 15. Nd2 {[%clk 0:02:47.6]} 15...
Nxd2 {[%clk 0:02:32.2]} 16. Qxd2 {[%clk 0:02:48.5]} 16... Bd5 {[%clk 0:02:31.7]}
17. Qe2 {[%clk 0:02:46.9]} 17... g5 {[%clk 0:02:27]} 18. f3 {[%clk 0:02:45.4]}
18... g4 {[%clk 0:02:23.7]} 19. hxg4 {[%clk 0:02:39.9]} 19... fxg4 {[%clk
0:02:21.1]} 20. e4 {[%clk 0:02:35.5]} 20... Bxc4 {[%clk 0:02:17.7]} 21. Qxc4
{[%clk 0:02:34.8]} 21... gxf3 {[%clk 0:02:17.7]} 22. gxf3 {[%clk 0:02:35.7]}
22... Rf7 {[%clk 0:02:16.2]} 23. e5 {[%clk 0:02:27.2]} 23... dxe5 {[%clk
0:02:11.8]} 24. Rxe5 {[%clk 0:02:25.8]} 24... Nd5 {[%clk 0:02:00]} 25. Re2
{[%clk 0:02:08]} 25... Kh8 {[%clk 0:01:51.6]} 26. Rae1 {[%clk 0:02:04.9]} 26...
Rg8 {[%clk 0:01:49.7]} 27. Kh1 {[%clk 0:02:00.7]} 27... Rxf3 {[%clk 0:01:07.6]}
28. Qxd5 {[%clk 0:01:57.3]} 28... Qf7 {[%clk 0:00:45.3]} 29. Qe4 {[%clk
0:00:59]} 29... Rf1+ {[%clk 0:00:42.2]} 30. Bg1 {[%clk 0:00:59.1]} 30... Rf4
{[%clk 0:00:05.1]} 31. Qe3 {[%clk 0:00:46.5]} 31... Rf3 {[%clk 0:00:05.2]} 32.
Qxe6 {[%clk 0:00:44.6]} 32... Qf4 {[%clk 0:00:03.8]} 33. Rh2 {[%clk 0:00:42.9]}
33... Rg3 {[%clk 0:00:02.5]} 34. Qe4 {[%clk 0:00:37.9]} 34... Qxe4+ {[%clk
0:00:01.2]} 35. Rxe4 {[%clk 0:00:37.4]} 35... Bf6 {[%clk 0:00:00.4]} 36. Bf2
{[%clk 0:00:33]} 36... Rd3 {[%clk 0:00:00.8]} 37. Rg2 {[%clk 0:00:31.6]} 37...
Rd1+ {[%clk 0:00:00.7]} 38. Kh2 {[%clk 0:00:31.8]} 38... Rxg2+ {[%clk
0:00:00.8]} 39. Kxg2 {[%clk 0:00:31.7]} 39... Rd2 {[%clk 0:00:00.8]} 40. b4
{[%clk 0:00:30.2]} 1-0

[Event "Early-Titled-Tuesday-Blitz-May-14-2024"]
[Site "Chess.com"]
[Date "2024.05.14"]
[Round "4"]
[White "Levanzovsky"]
[Black "Maluco_do_Natal_00"]
[Result "1-0"]
[WhiteElo "2554"]
[BlackElo "2040"]
[TimeControl "180+1"]
[EndTime "8:41:02 PDT"]
[Termination "Levanzovsky won on time"]

1. Nf3 {[%clk 0:03:00]} 1... d5 {[%clk 0:02:59.8]} 2. c4 {[%clk 0:02:56.9]} 2...
c6 {[%clk 0:02:59.1]} 3. b3 {[%clk 0:02:54.6]} 3... Nf6 {[%clk 0:02:52.6]} 4.
Bb2 {[%clk 0:02:54.3]} 4... g6 {[%clk 0:02:51.5]} 5. Bxf6 {[%clk 0:02:49.9]}
5... exf6 {[%clk 0:02:51]} 6. cxd5 {[%clk 0:02:50.5]} 6... cxd5 {[%clk
0:02:38.9]} 7. e3 {[%clk 0:02:29.3]} 7... Bg7 {[%clk 0:02:37.7]} 8. d4 {[%clk
0:02:28]} 8... O-O {[%clk 0:02:32.5]} 9. Be2 {[%clk 0:02:26.3]} 9... f5 {[%clk
0:02:28]} 10. O-O {[%clk 0:02:25.5]} 10... Nc6 {[%clk 0:02:25.3]} 11. Nc3 {[%clk
0:02:24.3]} 11... Re8 {[%clk 0:02:18.9]} 12. g3 {[%clk 0:02:23.7]} 12... a6
{[%clk 0:01:41.3]} 13. Rc1 {[%clk 0:02:21]} 13... Be6 {[%clk 0:01:29]} 14. Ne1
{[%clk 0:02:17.1]} 14... f4 {[%clk 0:01:18.5]} 15. gxf4 {[%clk 0:02:07.5]} 15...
Bh3 {[%clk 0:01:16.7]} 16. Ng2 {[%clk 0:02:06.7]} 16... Qd7 {[%clk 0:01:03.5]}
17. Bf3 {[%clk 0:02:02.1]} 17... Ne7 {[%clk 0:00:58.9]} 18. b4 {[%clk
0:01:57.9]} 18... b5 {[%clk 0:00:57.2]} 19. Qb3 {[%clk 0:01:57.5]} 19... Red8
{[%clk 0:00:45.1]} 20. Rfd1 {[%clk 0:01:52.2]} 20... Rac8 {[%clk 0:00:37.7]} 21.
Nb1 {[%clk 0:01:37.5]} 21... Bg4 {[%clk 0:00:29.5]} 22. Nd2 {[%clk 0:01:35.7]}
22... Be6 {[%clk 0:00:16.3]} 23. Rc5 {[%clk 0:01:35]} 23... Rxc5 {[%clk
0:00:15.4]} 24. bxc5 {[%clk 0:01:35.4]} 24... Nf5 {[%clk 0:00:12.6]} 25. Nf1
{[%clk 0:01:33.1]} 25... Bf6 {[%clk 0:00:12.1]} 26. Ng3 {[%clk 0:01:33.3]} 26...
Nh4 {[%clk 0:00:12.2]} 27. Nxh4 {[%clk 0:01:33.2]} 27... Bxh4 {[%clk 0:00:12.1]}
28. Ra1 {[%clk 0:01:30.6]} 28... Bg4 {[%clk 0:00:09.6]} 29. Bg2 {[%clk
0:01:29.4]} 29... Bh3 {[%clk 0:00:09.2]} 30. a4 {[%clk 0:01:25.1]} 30... Bxg2
{[%clk 0:00:07.9]} 31. Kxg2 {[%clk 0:01:26]} 31... Bxg3 {[%clk 0:00:06.2]} 32.
hxg3 {[%clk 0:01:25.9]} 32... bxa4 {[%clk 0:00:06.1]} 33. Qxa4 {[%clk
0:01:25.7]} 33... Qe6 {[%clk 0:00:04.6]} 34. Qxa6 {[%clk 0:01:25.5]} 34... Qe4+
{[%clk 0:00:04.9]} 35. Kg1 {[%clk 0:01:25.2]} 35... Rb8 {[%clk 0:00:03.5]} 36.
Qe2 {[%clk 0:01:06.2]} 36... h5 {[%clk 0:00:02.2]} 37. Rc1 {[%clk 0:00:50.9]}
37... h4 {[%clk 0:00:02.3]} 38. gxh4 {[%clk 0:00:49.6]} 38... Kg7 {[%clk
0:00:02.7]} 39. c6 {[%clk 0:00:39.1]} 39... Rh8 {[%clk 0:00:02.3]} 40. c7 {[%clk
0:00:39.5]} 40... Qe6 {[%clk 0:00:01.5]} 41. Qf3 {[%clk 0:00:30.9]} 1-0

[Event "Early-Titled-Tuesday-Blitz-May-14-2024"]
[Site "Chess.com"]
[Date "2024.05.14"]
[Round "4"]
[White "crazy_but_lazy"]
[Black "ChessSG1"]
[Result "1-0"]
[WhiteElo "2683"]
[BlackElo "2478"]
[TimeControl "180+1"]
[EndTime "8:41:03 PDT"]
[Termination "crazy_but_lazy won by checkmate"]

1. d4 {[%clk 0:03:00.4]} 1... Nf6 {[%clk 0:02:59.7]} 2. Nf3 {[%clk 0:03:00.5]}
2... c5 {[%clk 0:02:59]} 3. e3 {[%clk 0:02:54.6]} 3... g6 {[%clk 0:02:55]} 4. b3
{[%clk 0:02:49.6]} 4... cxd4 {[%clk 0:02:54.1]} 5. exd4 {[%clk 0:02:45.4]} 5...
Bg7 {[%clk 0:02:54.3]} 6. Bd3 {[%clk 0:02:43.5]} 6... d5 {[%clk 0:02:54.6]} 7.
O-O {[%clk 0:02:41.8]} 7... O-O {[%clk 0:02:49.4]} 8. Re1 {[%clk 0:02:40.9]}
8... Nc6 {[%clk 0:02:49.3]} 9. Bb2 {[%clk 0:02:39.5]} 9... Nb4 {[%clk
0:02:37.3]} 10. Be2 {[%clk 0:02:35.2]} 10... Bf5 {[%clk 0:02:36.8]} 11. Na3
{[%clk 0:02:31.5]} 11... Ne4 {[%clk 0:02:26.5]} 12. c3 {[%clk 0:02:31.4]} 12...
Nc6 {[%clk 0:02:21]} 13. Nc2 {[%clk 0:02:30.9]} 13... Rc8 {[%clk 0:02:20.1]} 14.
Ne3 {[%clk 0:02:30]} 14... Be6 {[%clk 0:02:07.7]} 15. Rc1 {[%clk 0:02:17.5]}
15... Qa5 {[%clk 0:01:51.8]} 16. a4 {[%clk 0:02:17.1]} 16... Qb6 {[%clk
0:01:28.2]} 17. Bd3 {[%clk 0:01:48.6]} 17... Na5 {[%clk 0:01:27.3]} 18. b4
{[%clk 0:01:49]} 18... Nd6 {[%clk 0:01:10.8]} 19. Ng5 {[%clk 0:01:37.8]} 19...
Nac4 {[%clk 0:00:57.5]} 20. Nxc4 {[%clk 0:01:32]} 20... Nxc4 {[%clk 0:00:55.3]}
21. Bxc4 {[%clk 0:01:17.3]} 21... Rxc4 {[%clk 0:00:56.2]} 22. Nxe6 {[%clk
0:01:17.9]} 22... fxe6 {[%clk 0:00:56.4]} 23. Qe2 {[%clk 0:01:14.2]} 23... Bh6
{[%clk 0:00:51.8]} 24. Rc2 {[%clk 0:01:12.3]} 24... Rf6 {[%clk 0:00:43.6]} 25.
Bc1 {[%clk 0:01:06.8]} 25... Bxc1 {[%clk 0:00:42.7]} 26. Rexc1 {[%clk
0:01:06.1]} 26... Qa6 {[%clk 0:00:42.7]} 27. a5 {[%clk 0:01:02.4]} 27... Qc6
{[%clk 0:00:41.2]} 28. h3 {[%clk 0:00:48.9]} 28... a6 {[%clk 0:00:41.2]} 29. Qd3
{[%clk 0:00:48]} 29... Qd6 {[%clk 0:00:38.4]} 30. Re1 {[%clk 0:00:47.6]} 30...
Rc8 {[%clk 0:00:28.1]} 31. Re3 {[%clk 0:00:47.1]} 31... Rcf8 {[%clk 0:00:26.1]}
32. Rce2 {[%clk 0:00:44.5]} 32... Qc6 {[%clk 0:00:24.7]} 33. h4 {[%clk
0:00:43.3]} 33... Qa4 {[%clk 0:00:16.8]} 34. g3 {[%clk 0:00:27.1]} 34... Qa1+
{[%clk 0:00:16]} 35. Kg2 {[%clk 0:00:27.5]} 35... Qc1 {[%clk 0:00:09.7]} 36.
Rxe6 {[%clk 0:00:17.7]} 36... Rxe6 {[%clk 0:00:05.5]} 37. Rxe6 {[%clk
0:00:18.6]} 37... Rc8 {[%clk 0:00:05.2]} 38. Re3 {[%clk 0:00:19.1]} 38... Rf8
{[%clk 0:00:01.9]} 39. Rxe7 {[%clk 0:00:16.5]} 39... g5 {[%clk 0:00:00.8]} 40.
Qxh7# {[%clk 0:00:15.5]} 1-0

[Event "Early-Titled-Tuesday-Blitz-May-14-2024"]
[Site "Chess.com"]
[Date "2024.05.14"]
[Round "4"]
[White "Bilan_Danila"]
[Black "hsd2016"]
[Result "1-0"]
[WhiteElo "2663"]
[BlackElo "2330"]
[TimeControl "180+1"]
[EndTime "8:41:04 PDT"]
[Termination "Bilan_Danila won by checkmate"]

1. d4 {[%clk 0:03:00.9]} 1... d5 {[%clk 0:02:59.9]} 2. Nf3 {[%clk 0:03:00.2]}
2... Nf6 {[%clk 0:02:59.7]} 3. c4 {[%clk 0:03:00.1]} 3... c6 {[%clk 0:02:59.6]}
4. Nc3 {[%clk 0:03:00.2]} 4... dxc4 {[%clk 0:02:59.8]} 5. a4 {[%clk 0:03:00]}
5... Bf5 {[%clk 0:03:00.2]} 6. e3 {[%clk 0:02:57.3]} 6... e6 {[%clk 0:02:52.8]}
7. Bxc4 {[%clk 0:02:57]} 7... Bb4 {[%clk 0:02:53]} 8. O-O {[%clk 0:02:57.4]}
8... O-O {[%clk 0:02:52.2]} 9. Qe2 {[%clk 0:02:58.1]} 9... Bg6 {[%clk
0:02:51.5]} 10. Ne5 {[%clk 0:02:58.1]} 10... Nbd7 {[%clk 0:02:51.2]} 11. Nxg6
{[%clk 0:02:58.7]} 11... hxg6 {[%clk 0:02:52.1]} 12. Rd1 {[%clk 0:02:57]} 12...
Qe7 {[%clk 0:02:49.7]} 13. e4 {[%clk 0:02:56.1]} 13... e5 {[%clk 0:02:49.6]} 14.
d5 {[%clk 0:02:51.1]} 14... a5 {[%clk 0:02:46.9]} 15. Bg5 {[%clk 0:02:42.1]}
15... Nb6 {[%clk 0:02:39.9]} 16. Bb3 {[%clk 0:02:41.7]} 16... Rfd8 {[%clk
0:02:37.2]} 17. Rd3 {[%clk 0:02:40.4]} 17... Bc5 {[%clk 0:02:17.2]} 18. Rad1
{[%clk 0:02:29.1]} 18... Bd4 {[%clk 0:02:13.8]} 19. Rf3 {[%clk 0:02:09.7]} 19...
Rd6 {[%clk 0:02:06]} 20. Qc2 {[%clk 0:01:46.4]} 20... Rc8 {[%clk 0:01:58.2]} 21.
Qe2 {[%clk 0:01:19.2]} 21... Rcd8 {[%clk 0:01:52.6]} 22. h4 {[%clk 0:00:52.1]}
22... Qc7 {[%clk 0:00:57.5]} 23. dxc6 {[%clk 0:00:32.5]} 23... bxc6 {[%clk
0:00:58.4]} 24. Rc1 {[%clk 0:00:27.4]} 24... Qb7 {[%clk 0:00:49.6]} 25. Bxf6
{[%clk 0:00:19.9]} 25... gxf6 {[%clk 0:00:47.1]} 26. h5 {[%clk 0:00:20.4]} 26...
Kg7 {[%clk 0:00:47.5]} 27. Rg3 {[%clk 0:00:18.3]} 27... Rh8 {[%clk 0:00:27.1]}
28. hxg6 {[%clk 0:00:08.5]} 28... fxg6 {[%clk 0:00:26.9]} 29. Qg4 {[%clk
0:00:09]} 29... g5 {[%clk 0:00:24.8]} 30. Rh3 {[%clk 0:00:06.8]} 30... Rxh3
{[%clk 0:00:15.8]} 31. Qxh3 {[%clk 0:00:07.7]} 31... Nd7 {[%clk 0:00:16.1]} 32.
Ne2 {[%clk 0:00:08.2]} 32... Bxb2 {[%clk 0:00:09.4]} 33. Rb1 {[%clk 0:00:08.5]}
33... Bd4 {[%clk 0:00:08.5]} 34. Ng3 {[%clk 0:00:08.7]} 34... Kf8 {[%clk
0:00:03]} 35. Qh8+ {[%clk 0:00:07.8]} 35... Ke7 {[%clk 0:00:03.6]} 36. Nf5#
{[%clk 0:00:07.8]} 1-0

[Event "Early-Titled-Tuesday-Blitz-May-14-2024"]
[Site "Chess.com"]
[Date "2024.05.14"]
[Round "4"]
[White "Bauman_Guy"]
[Black "DenLaz"]
[Result "0-1"]
[WhiteElo "2889"]
[BlackElo "3119"]
[TimeControl "180+1"]
[EndTime "8:41:11 PDT"]
[Termination "DenLaz won by resignation"]

1. e4 {[%clk 0:03:00.9]} 1... c5 {[%clk 0:02:59.8]} 2. Nf3 {[%clk 0:03:00.4]}
2... e6 {[%clk 0:03:00.5]} 3. d4 {[%clk 0:03:00.2]} 3... cxd4 {[%clk 0:03:01.4]}
4. Nxd4 {[%clk 0:03:01.1]} 4... Nc6 {[%clk 0:03:02]} 5. Nc3 {[%clk 0:03:01.4]}
5... Qc7 {[%clk 0:03:02.6]} 6. Nxc6 {[%clk 0:03:01.5]} 6... bxc6 {[%clk
0:03:02.5]} 7. Bd3 {[%clk 0:03:01.4]} 7... Nf6 {[%clk 0:03:00.2]} 8. Qe2 {[%clk
0:02:57.7]} 8... e5 {[%clk 0:02:51.4]} 9. O-O {[%clk 0:02:55]} 9... Be7 {[%clk
0:02:51.1]} 10. f4 {[%clk 0:02:52.6]} 10... d6 {[%clk 0:02:51.2]} 11. Kh1 {[%clk
0:02:52.7]} 11... O-O {[%clk 0:02:50.8]} 12. b3 {[%clk 0:02:51.7]} 12... a5
{[%clk 0:02:48]} 13. Bb2 {[%clk 0:02:50.5]} 13... Nd7 {[%clk 0:02:26.6]} 14. Na4
{[%clk 0:02:43.3]} 14... exf4 {[%clk 0:02:25.1]} 15. Rxf4 {[%clk 0:02:40.7]}
15... Ne5 {[%clk 0:02:25.8]} 16. Raf1 {[%clk 0:02:37.8]} 16... Be6 {[%clk
0:02:25.5]} 17. c4 {[%clk 0:02:36.5]} 17... f6 {[%clk 0:02:21.1]} 18. Nc3 {[%clk
0:02:26.7]} 18... Rad8 {[%clk 0:02:18.7]} 19. Bc2 {[%clk 0:02:26.5]} 19... Rfe8
{[%clk 0:02:17.8]} 20. Qd1 {[%clk 0:02:22.9]} 20... Bf8 {[%clk 0:02:15.9]} 21.
Qe1 {[%clk 0:02:14.4]} 21... Bf7 {[%clk 0:02:11.6]} 22. Qg3 {[%clk 0:02:12.5]}
22... Bg6 {[%clk 0:02:07.4]} 23. R4f2 {[%clk 0:02:10.4]} 23... Kh8 {[%clk
0:02:03.9]} 24. Ne2 {[%clk 0:02:09.4]} 24... Nd7 {[%clk 0:01:47.8]} 25. Nf4
{[%clk 0:01:52.2]} 25... Bxe4 {[%clk 0:01:44.9]} 26. Bxe4 {[%clk 0:01:13]} 26...
Rxe4 {[%clk 0:01:45.8]} 27. Qh3 {[%clk 0:00:56.8]} 27... Rde8 {[%clk 0:01:36.3]}
28. Nh5 {[%clk 0:00:50.1]} 28... Qd8 {[%clk 0:01:10.4]} 29. g3 {[%clk
0:00:45.4]} 29... Re1 {[%clk 0:01:05.3]} 30. Qg2 {[%clk 0:00:44.7]} 30... Rxf1+
{[%clk 0:01:02.9]} 31. Rxf1 {[%clk 0:00:44.8]} 31... Ne5 {[%clk 0:01:01.6]} 32.
Nf4 {[%clk 0:00:38.6]} 32... Qd7 {[%clk 0:01:00.8]} 33. h3 {[%clk 0:00:36.6]}
33... a4 {[%clk 0:00:57.9]} 34. g4 {[%clk 0:00:36.1]} 34... axb3 {[%clk
0:00:57.9]} 35. axb3 {[%clk 0:00:37]} 35... Qb7 {[%clk 0:00:42.6]} 36. g5 {[%clk
0:00:27.7]} 36... fxg5 {[%clk 0:00:33.3]} 37. Bxe5 {[%clk 0:00:27.2]} 37... gxf4
{[%clk 0:00:17.2]} 38. Bxf4 {[%clk 0:00:27.3]} 38... Qxb3 {[%clk 0:00:12.6]} 39.
c5 {[%clk 0:00:17.3]} 39... dxc5 {[%clk 0:00:11.1]} 40. Be5 {[%clk 0:00:17]}
40... Qd5 {[%clk 0:00:08.6]} 41. Rf3 {[%clk 0:00:11.1]} 41... Qxe5 {[%clk
0:00:08.3]} 0-1